Cogmind - Beta 13 @@@ ROGUE MODE // 2024.05.25 @ 04:05:45 Player: Feral_Cog Result: Destroyed by D-53 Grenadier with Mini Grenade Launcher Performance ------------- Evolutions (0) 0 Regions Visited (2) 400 Robots Destroyed (21) 105 Value Destroyed (494) 494 Prototype IDs (0) 0 Alien Tech Used (0) 0 Bonus (0) 0 TOTAL SCORE: 999 Bonus ------- None Cogmind --------- Core Integrity 0/250 Matter 266/300 Energy 100/100 System Corruption 3% Temperature Cool (0) Movement Rolling (90) Location -10/Mines Parts ------- > --- POWER (1) -------- (None) > --- PROPULSION (2) --- Armored Wheel Armored Wheel > --- UTILITY (2) ------ (None) > --- WEAPON (2) ------- Subdweller Machine Gun Grenade Launcher > --- INVENTORY (5) ---- Subdweller Power Source Armored Wheel Armored Wheel Subdweller Optics Peak State ------------ > --- POWER ------------ Subdweller Power Source > --- PROPULSION ------- Armored Wheel Armored Wheel > --- UTILITY ---------- Scrap Shield > --- WEAPON ----------- Subdweller Machine Gun Grenade Launcher > --- INVENTORY -------- Subdweller Power Source Armored Wheel Armored Wheel Subdweller Optics [Rating: 13] Favorites ----------- Power Light Ion Engine Engine Light Ion Engine Propulsion Light Treads Treads Light Treads Wheel Armored Wheel Utility Small Storage Unit Storage Small Storage Unit Processor Targeting Computer Protection Scrap Shield Weapon Assault Rifle Ballistic Gun Assault Rifle Launcher Grenade Launcher Build | -11 -10 -10 ------- Run | Yrd Mat Min Slots Evolved . | . . . Power . | . . . Propulsion . | . . . Utility . | . . . Weapon . | . . . Parts Attached 16 | 6 9 1 Power 3 | 1 2 . Engine 3 | 1 2 . Core . | . . . Reactor . | . . . Propulsion 5 | 2 3 . Treads 2 | 2 . . Leg . | . . . Wheel 3 | . 3 . Hover . | . . . Flight . | . . . Utility 3 | 1 2 . Device . | . . . Storage 1 | 1 . . Processor 1 | . 1 . Hackware . | . . . Protection 1 | . 1 . Artifact . | . . . Weapon 5 | 2 2 1 Energy Gun . | . . . Energy Cannon . | . . . Ballistic Gun 4 | 2 2 . Ballistic Cannon . | . . . Launcher 1 | . . 1 Special Weapon . | . . . Impact Weapon . | . . . Slashing Weapon . | . . . Piercing Weapon . | . . . Special Melee Weapon . | . . . Unidentified Prototypes . | . . . Parts Lost 2 | . . 2 Power 1 | . . 1 Propulsion . | . . . Utility 1 | . . 1 Weapon . | . . . Highest Loss Streak 2 | . . 2 To Critical Strikes . | . . . Average Slot Usage (%) 89 | . 92 69 Engine 13 | . 14 12 Treads 20 | . 23 . Wheel 7 | . 4 28 Storage 9 | . 10 . Processor 8 | . 9 . Protection 4 | . 3 12 Ballistic Gun 23 | . 24 14 Naked Turns . | . . . Heaviest Build 27 | 11 27 27 Greatest Support 40 | 40 40 24 Greatest Overweight (x) 2 | . 2 1 Average Overweight (x) . | . . . Largest Inventory Capacity 8 | 8 8 5 Average Capacity 7 | 7 7 5 Most Carried 8 | 5 8 5 Average Carried 4 | 1 5 4 Final Capacity 8 | 8 5 5 Final Carried 5 | 3 5 4 Class Distribution -------------------- 73% | Mutant 26% | Subdweller-Mutant Dominant Class ---------------- Mutant | -10/Materials Subdweller-Mutant | -10/Mines Resources | -11 -10 -10 ----------- Run | Yrd Mat Min Matter Collected 594 | 288 286 20 Remotely . | . . . Salvage Created 765 | 144 538 83 Parts 52 | 16 34 2 Haulers Intercepted 1 | . 1 . Recyclers Shooed 1 | 1 . . Parts Field Recycled . | . . . Retrieved Matter . | . . . Parts Self-Destructed . | . . . Prevented . | . . . Kills | -11 -10 -10 ------- Run | Yrd Mat Min Combat Hostiles Destroyed 12 | . 10 2 Guns 12 | . 10 2 Classes Destroyed 8 | 2 5 1 Worker 1 | . 1 . Tunneler 5 | 4 . 1 Hauler 1 | . 1 . Recycler 1 | 1 . . Watcher 2 | . 2 . Grunt 8 | . 7 1 Subdweller 3 | . 3 . Assembled 1 | . . 1 Best Kill Streak 5 | 5 4 2 Combat Bots Only 3 | . 3 1 Max Kills in Single Turn 1 | 1 1 1 Gunslinging . | . . . Exploded . | . . . Melee . | . . . Uniques/NPCs Destroyed . | . . . Combat | -11 -10 -10 -------- Run | Yrd Mat Min Hostile Shots Fired 73 | . 50 23 Missed 23 | . 17 6 Damage Taken 955 | . 536 419 Core 257 | . 160 97 Absorbed by Shields . | . . . Core Remaining (%) 100 | 100 . . Volleys Fired 73 | 7 49 17 Largest 2 | 2 2 2 Hottest 60 | 40 40 60 Shots Fired 131 | 14 98 19 Gun 129 | 14 98 17 Cannon . | . . . Launcher 2 | . . 2 Special . | . . . Kinetic 129 | 14 98 17 Thermal . | . . . Explosive 2 | . . 2 Electromagnetic . | . . . Robot Hit Streak 9 | 3 9 7 Robot Miss Streak 3 | 2 3 2 Penetration Max . | . . . Secondary Targets 2 | . 2 . Max Gunslinging Chain 1 | . 1 . Shots Hit Robots 83 | 7 64 12 Core Hits 44 | 7 29 8 Critical Kills . | . . . Critical Parts Destroyed 1 | . . 1 Critical Strikes 1 | . . 1 Destroy 1 | . . 1 Melee Attacks . | . . . Impact . | . . . Slashing . | . . . Piercing . | . . . Sneak Attacks . | . . . Combat Hostiles . | . . . Follow-up Attacks . | . . . Damage Inflicted 1174 | 93 689 392 Guns 1032 | 93 689 250 Cannons . | . . . Explosions 142 | . . 142 Melee . | . . . Ramming . | . . . Kinetic 1032 | 93 689 250 Thermal . | . . . Explosive 142 | . . 142 Electromagnetic . | . . . Impact . | . . . Slashing . | . . . Piercing . | . . . Highest Corruption 3 | . . 3 Average Corruption 3 | . . 3 Corruption Purged . | . . . Corruption Blocked . | . . . Overload Shots . | . . . Overflow Damage 3 | . . 3 Projectiles . | . . . Explosions 3 | . . 3 Melee . | . . . Knockbacks . | . . . Impact . | . . . Kinetic . | . . . Secondary . | . . . Self-Inflicted Damage 53 | . . 53 Shots 2 | . . 2 Rammed . | . . . Targets Rammed . | . . . Kicked . | . . . Crushed . | . . . Highest Temperature 15 | . 15 6 Average Temperature 6 | . 8 2 Received Heat Transfer 209 | . 156 53 Siege Activations . | . . . Robots Corrupted . | . . . Combat Hostiles . | . . . Parts Fried . | . . . Impact Corruptions . | . . . Robots Melted . | . . . Combat Hostiles . | . . . Parts Melted 1 | . 1 . Heat Transferred . | . . . Parts Sabotaged . | . . . Parts Stolen . | . . . Parts Stripped . | . . . Power Chain Reactions . | . . . Alert | -11 -10 -10 ------- Run | Yrd Mat Min Peak Influence 244 | 25 244 79 Initial 21 | . 16 21 Average 60 | 9 66 57 Maximum Alert Level 1 | . 1 . Low Security (%) 98 | 100 98 100 Level 1 1 | . 1 . Level 2 . | . . . Level 3 . | . . . Level 4 . | . . . Level 5 . | . . . High Security . | . . . Max Security . | . . . Squads Dispatched 1 | . 1 . Investigation 1 | . 1 . Extermination . | . . . Reinforcement . | . . . Assault . | . . . Garrison . | . . . Intercept . | . . . Searches Triggered . | . . . Construction Impeded . | . . . Haulers Reinforced . | . . . Active Scanning Responses . | . . . Cargo Convoy Interrupts . | . . . Stealth | -11 -10 -10 --------- Run | Yrd Mat Min Distress Signals 2 | . 2 . Communications Jammed . | . . . Distress Signals . | . . . Times Spotted 33 | . 16 17 Peak Tracking Total 13 | . 4 13 Tactical Retreats 2 | . . 2 Traps | -11 -10 -10 ------- Run | Yrd Mat Min Traps Triggered 1 | . 1 . Indirectly . | . . . Trap Hack Attempts . | . . . Triggered . | . . . Disarmed . | . . . Reprogrammed . | . . . Reused . | . . . Traps Extracted . | . . . Installed . | . . . Triggered . | . . . Machines | -11 -10 -10 ---------- Run | Yrd Mat Min Machines Disabled . | . . . Max in Single Turn . | . . . Machines Repaired . | . . . Machines Dismantled . | . . . Machines Sabotaged . | . . . Overloaded Fab Kills . | . . . Hacking | -11 -10 -10 --------- Run | Yrd Mat Min Machines Accessed 2 | . 2 . Terminals 2 | . 2 . Fabricators . | . . . Repair Stations . | . . . Recycling Units . | . . . Scanalyzers . | . . . Garrison Access . | . . . Total Hacks 4 | . 4 . Successful 2 | . 2 . Failed 2 | . 2 . Catastrophic . | . . . Database Lockouts . | . . . Manual . | . . . Terminals 4 | . 4 . Fabricators . | . . . Repair Stations . | . . . Recycling Units . | . . . Scanalyzers . | . . . Garrison Access . | . . . Terminal Hacks 2 | . 2 . Dispatch Records 1 | . 1 . Zone Layout 1 | . 1 . Fabricator Hacks . | . . . Repair Station Hacks . | . . . Recycling Unit Hacks . | . . . Scanalyzer . | . . . Garrison Access Hacks . | . . . Unauthorized Hacks . | . . . Terminals . | . . . Fabricators . | . . . Repair Stations . | . . . Recycling Units . | . . . Scanalyzers . | . . . Garrison Access . | . . . Data Cores Recovered . | . . . Used . | . . . Hacking Detections 1 | . 1 . Full Trace Events . | . . . Feedback Events . | . . . Feedback Blocked . | . . . Robot Schematics Acquired . | . . . Robots Built . | . . . Authchips . | . . . Time . | . . . Total Robot Build Rating . | . . . Part Schematics Acquired . | . . . Parts Built . | . . . Authchips . | . . . Time . | . . . Total Part Build Rating . | . . . Parts Repaired . | . . . Time . | . . . Parts Recycled . | . . . Recycled Matter . | . . . Retrieved Matter . | . . . Retrieved Components . | . . . Parts Scanalyzed . | . . . Part Schematics Acquired . | . . . Parts Damaged . | . . . Bothacking | -11 -10 -10 ------------ Run | Yrd Mat Min Used RIF Installer . | . . . Robots Hacked . | . . . Non-combat . | . . . Combat . | . . . Robot Hacks Applied . | . . . Relay Couplers Released . | . . . Fabnet Peak Effective % . | . . . Robots Rewired . | . . . Allies Hacked . | . . . Hacks Repelled . | . . . Allies | -11 -10 -10 -------- Run | Yrd Mat Min Total Allies . | . . . Largest Group . | . . . Highest-Rated Group . | . . . Highest-Rated Ally . | . . . Total Orders . | . . . Ally Attacks . | . . . Total Damage . | . . . Kills . | . . . Allies Corrupted . | . . . Allies Melted . | . . . Intel | -11 -10 -10 ------- Run | Yrd Mat Min Robot Analysis Total . | . . . Derelict Logs Recovered . | . . . Drone Launches . | . . . Drone Recoveries . | . . . Exploration | -11 -10 -10 ------------- Run | Yrd Mat Min Turns Passed 979 | 93 792 94 Spaces Moved 512 | 47 414 51 Core 14 | 14 . . Treads 333 | 33 300 . Legs . | . . . Wheels 165 | . 114 51 Hover . | . . . Flight . | . . . Fastest Speed 50 | 50 105 90 Average Speed 139 | 127 145 104 Slowest Speed 160 | 160 160 105 Overloaded Moves . | . . . Propulsion Burnouts . | . . . Robots Hopped . | . . . Cave-ins Triggered . | . . . Exploration Rate (%) 22 | 3 44 19 Regions Visited 2 Branch Regions 1 Pre-discovered Areas . | . . . Known Exits Taken . | . . . Unknown Exits Taken 2 | 1 1 . Scrap Searched . | . . . Spaces Dug . | . . . Terrain Destroyed 17 | . . 17 Melee . | . . . Projectile 1 | . . 1 AOE 16 | . . 16 Terrain Rammed . | . . . Walls Destroyed . | . . . Machines Disabled . | . . . Actions | -11 -10 -10 --------- Run | Yrd Mat Min Total 665 | 68 525 72 Wait 15 | . 12 3 Move 510 | 46 413 51 Hop . | . . . Pick Up 31 | 9 22 . Fast Attach . | . . . Attach 15 | 6 8 1 Detach . | . . . Swap 1 | . 1 . Drop 18 | . 18 . Fire 73 | 7 49 17 Melee . | . . . Ram . | . . . Kick . | . . . Crush . | . . . Escape Stasis . | . . . Rewire . | . . . Trap . | . . . Miscellaneous 2 | . 2 . Route ------- -11/Scrapyard -10/Materials (discovered 3 exits: [*Mat] / [*Min] / [*Sub]) -10/Mines History --------- Turn | Location | Event 8 | -11/Scrapyard | Discovered new exit (range 13) 94 | -11/Scrapyard | Entered Materials 317 | -10/Materials | Build established: Mutant 367 | -10/Materials | Discovered new exit (range 13) 367 | -10/Materials | Discovered new exit (range 19) 594 | -10/Materials | Derelicts attacked the area 650 | -10/Materials | Core integrity fell below 50% 761 | -10/Materials | Discovered new exit (range 11) 886 | -10/Materials | Entered Mines 944 | -10/Mines | Assembled infested the area 958 | -10/Mines | Core integrity fell below 20% 980 | -10/Mines | Destroyed by D-53 Grenadier with Mini Grenade Launcher Last Messages --------------- 00956_ TP-MX8(g): "Everyone knows a good old rocket launcher goes a long way." 00956_ as-02616 suffers critical hit (Burn). 00957_ TP-MX8(g): "Need to get rid of a swarm? Done. Need a big hole in the wall? Done." 00962_ Knocked back. 00962_ as-39721 destroyed. 00971_ C-30 ARC bursts open, deploying its payload. 00971_ D-53 Grenadier unfolds itself. 00971_ Destroyed Asb. Hover Unit. 00971_ T-07 Excavator destroyed. 00972_ Sub. Power Source destroyed. 00972_ System corrupted by crushing effect (+3). 00972_ Knocked back. 00972_ as-98177 destroyed. 00972_ as-84041 destroyed. 00976_ as-09529 destroyed. 00976_ as-56918 destroyed. 00976_ Scrap Shield destroyed. 00976_ Destroyed Scrap Shield. Map ----- +----------------------------------------------------+ | ?????????????????????????????????????????????????? | | ??????????####???????????????????????????????????? | | ?????????##! ##??????????????????????????????????? | | ????????## ##?????????????????????????????????? | | ????????# !#?????????????????????????????????? | | ?????# ##! ! ##??####??????????????????????????? | | ?????# ! #??# #??????????????????????????? | | ?????##### ### #??????????????????????????? | | ?????????# #??????????????????????????? | | ?????????## ##### ##?????????????????????????? | | ??????????# ###???# #?????????????????????????? | | ??????????# #????## ##????????????????????????? | | ??????????# #??### #????????????????????????? | | ??????????# #### #????????????????????????? | | ?????????## "## ##????????????????????????? | | ????????## #?????????????????????????? | | ???????## ######?????????????????????? | | ???????# ## ###### ###???????????????????? | | ???????# = ### #?### ##??????????????????? | | ???????# % ##?# #?# #??????????????????? | | ???????# #??# ### ###????????????????? | | ???????## ##??#"% d #????????????????? | | ????????# #???#### a#?????????????????? | | ????????# ##????????# #?????????????????? | | ????????# #?????????# [ #a# a a ????????? | | ???????? ##?????????# @ %%%a #??????????????? | | ??????? #?????? * ### #??????????????? | | ?????? ??????# ##?? #??????????????? | | ?????? #?????# #???? #??????????????? | | ????? ##?????# ?????#??????????????? | | ????# ???????# ###### #???????????????????? | | ????? ????????## ??????## ##???????????????????? | | ????? ?????????#????????#####????????????????????? | | ?????????????????????????????????????????????????? | | ?????????????????????????????????????????????????? | | ?????????????????????????????????????????????????? | | ?????????????????????????????????????????????????? | | ?????????????????????????????????????????????????? | | ?????????????????????????????????????????????????? | | ?????????????????????????????????????????????????? | | ?????????????????????????????????????????????????? | | ?????????????????????????????????????????????????? | | ?????????????????????????????????????????????????? | | ?????????????????????????????????????????????????? | | ?????????????????????????????????????????????????? | | ?????????????????????????????????????????????????? | | ?????????????????????????????????????????????????? | | ?????????????????????????????????????????????????? | | ?????????????????????????????????????????????????? | | ?????????????????????????????????????????????????? | +----------------------------------------------------+ Best States ------------- Heat Dissipation 25 Energy Generation 15 Energy Capacity 200 Matter Stores 300 Matter Capacity 300 Sight Range 16 Terrain Scan Density 10 Armor Coverage 800 Evasion (%) 50 Targeting Accuracy 5 Recoil Reduction 2 Item Schematics ----------------- None Robot Schematics ------------------ None Fabricated ------------ Nothing Alien Tech Used ----------------- None Achievements -------------- None Challenges ------------ None Game ------ Seed NeutrinoFusionThruster Manual? 0 Play Time 00:21:09 Cumulative 17.2 hours Start 2024.05.25 @ 03:44:49 End 2024.05.25 @ 04:05:45 Sessions 1 Manual Loads 0 Difficulty Rogue Special Mode None Game No. 18 Rogue 18 Adventurer 0 Explorer 0 Win Type - Total 0 Types 0/0/0/0/0/0/0/0/0 Lore% 14 Gallery% 18 Achievement% 14 Wizard Run 0 Options --------- Layout 1 ASCII 0 Keyboard 0 Movement Mouse Keybinds 0 Fullscreen 1 Font 28/TerminusBold Map View 30x25 Zoom Use 99% Tactical HUD 1 Map Filters NONE Filters NONE Steam 1 RUN: 7e27eacc-58a3-480b-a159-9d1901c7938b